{"text_format":"1","workbook":"xlsx","n_sheets":14,"sheets":["Cover","Info","Results","E01","E02","E03","E04","E05","E06","E07","E08","E09","E10","About"],"not_rendered":{"charts":10,"images":43,"macros":1,"external_links":0,"defined_names":15,"comments":0,"pivot_tables":0},"unopened":[],"bounds":{"document_bytes":16777216,"sheet_cells":100000,"rows_first":2000,"rows_last":500,"rows_between":2000,"halvings":0,"cell_chars":16384,"cell_head_chars":4096},"cells_cut":0,"cells_raw":0,"read":"whole","date_system":"1900"}

{"sheet":"Cover","index":0,"n_rows":0,"n_cols":0,"rows_kept":0,"cut":false,"hidden":false,"merged":[]}

{"sheet":"Info","index":1,"n_rows":49,"n_cols":4,"rows_kept":49,"cut":false,"hidden":false,"merged":[[48,1,48,3],[49,1,49,3],[46,1,46,3],[2,1,2,2],[3,1,3,2],[4,1,4,2],[5,1,5,2],[6,1,6,2],[45,1,45,3],[39,1,39,2],[40,1,40,2],[41,1,41,2],[42,1,42,2],[43,1,43,2]]}
[]
[]
[null," معلومات التقييم",null,"الإجابة"]
[null,"اسم المدينة "]
[null,"نوع المدينة  (بلدية ,مدينة كبرى, قرية)"]
[null,"البلد "]
[null,"تاريخ التقييم "]
[]
[null,"الملف الشخصي للمدينة (مطلوب)","الإجابة","تاريخ المصدر  "]
[null,"المسمى الوظيفي لأعلى منصب في المدينة  (على سبيل المثال عمدة, رئيس بلدية ¸إلخ)"]
[null,"عدد سكان المدينة "]
[null,"مساحة  المدينة  (كيلومتر مربع):"]
[null,"الكثافة السكانية (لكل كيلومتر مربع):"]
[null,"٪ الأسر المعيشية التي ترأسها امرأة"]
[null,"٪ السكان الشباب (15-24):"]
[null,"٪ السكان من كبار السن (65+):"]
[null,"معدل محو الأمية (٪)"]
[null,"معدل الفقر(٪)"]
[null,"معدل دخل الأسرة (دولار):"]
[null,"السكان غير المواطنين (٪):"]
[null,"مخاطر الكوارث -  الأكثر احتمالا (اجابة واحدة):"]
[null,"مخاطر الكوارث  -  الأكثر حدة (اجابة واحدة):"]
[]
[null,"لمحة عن المدينة","العدد الإجمالي و / أو النسبة المئوية من إجمالي السكان","لمحة عن المدينة [1]"]
[null,"عدد الأشخاص ذوي الإعاقة (معدل الانتشار التقديري)"]
[null,"معلومات مفصلة حسب الدخل (تحت خط الفقر)"]
[null,"المعلومات مصنفة حسب الجنس"]
[null,"المعلومات مصنفة حسب العمر"]
[null,"المعلومات مصنفة حسب نوع الإعاقة (ضعف جسدي، ضعف حسي، ضعف إدراكي، إعاقة ذهنية، مرض عقلي، وأي شكل من أشكال الأمراض المزمنة)"]
[null,"المعلومات مصنفة حسب الحي أو الوحدة السكنية"]
[]
[null,"لمحة عن المدينة","العدد الإجمالي و / أو النسبة المئوية من إجمالي السكان","مصدر المعلومات"]
[null,"عدد الأشخاص ذوي الإعاقة (معدل الانتشار التقديري)"]
[null,"معلومات مفصلة حسب الدخل (تحت خط الفقر)"]
[null,"المعلومات مصنفة حسب الجنس"]
[null,"المعلومات مصنفة حسب العمر"]
[null,"المعلومات مصنفة حسب نوع الإعاقة (ضعف جسدي، ضعف حسي، ضعف إدراكي، إعاقة ذهنية، مرض عقلي، وأي شكل من أشكال الأمراض المزمنة)"]
[null,"المعلومات مصنفة حسب الحي أو الوحدة السكنية"]
[]
[null,"فريق الحكومة المحلية للحد من مخاطر الكوارث والقدرة على الصمود",null,"الإجابة"]
[null,"اسم الشخص المكلف برئاسة / تنسيق الانتهاء من تقييم بطاقة التقييم:"]
[null,"الجهة:"]
[null,"بيانات الاتصال:"]
[null,"الرغبة في تبادل النتائج والمعلومات أو استخدامها كمثال أو دراسة حالة من قبل مكتب الامم المتحدة للحد من مخاطر الكوارث والشركاء:"]
[]
[null,"معلومات عن الشركاء واصحاب المصلحة  [2]"]
[]
[]
[null," نموذج حالة الأشخاص ذوي الإعاقة في المدينة/الحكومة المحلية [3]"]

{"sheet":"Results","index":2,"n_rows":140,"n_cols":18,"rows_kept":140,"cut":false,"hidden":false,"merged":[[90,2,90,5],[73,3,73,6],[76,2,76,5],[86,3,86,5],[93,3,93,6],[39,3,39,6],[54,3,54,6],[56,2,56,5],[57,2,57,5],[34,2,34,5],[35,2,35,5],[49,2,49,5],[42,2,42,5],[41,2,41,5],[95,2,95,5],[96,2,96,5],[102,1,102,2],[104,1,104,3],[32,3,32,6],[58,2,58,5],[59,2,59,5],[62,3,62,6],[64,2,64,5],[69,2,69,5],[83,2,83,5],[88,2,88,5],[70,2,70,5],[67,3,67,6],[75,2,75,5],[89,2,89,5]]}
[]
[]
[]
[]
[null,{"$f":"Info!B4&IF(Info!D4=\"\",\"\",Info!D4)","v":"اسم المدينة "}]
[]
[null,{"$f":"Info!B6&IF(Info!D6=\"\",\"\",Info!D6)","v":"البلد "}]
[]
[null,{"$f":"Info!B7&IF(Info!D7=\"\",\"\",Info!D7)","v":"تاريخ التقييم "}]
[null,null,null,null,""]
[]
[]
[]
[]
[]
[]
[]
[]
[]
[]
[]
[]
[]
[]
[]
[]
[]
[]
[]
[]
[]
[]
[null,"الأساسية ١",null,{"$f":"D109","v":"الإعداد من أجل القدرة على الصمود - إدماج الأشخاص ذوي الإعاقة في إدارة مخاطر الكوارث"}]
[]
[null,{"$f":"C121","v":"س ١.١"},{"$f":"E121","v":"عدم ترك أحد خلف الركب"},null,null,null,{"$f":"F121","v":0}]
[null,{"$f":"C122","v":"س ١.٢"},{"$f":"E122","v":"التنظيم والتنسيق والمشاركة"},null,null,null,{"$f":"F122","v":0}]
[]
[]
[]
[null,"الأساسية ٢",null,{"$f":"D110","v":"تعريف وفهم واستخدام سيناريوهات المخاطر الحالية والمستقبلية - إدماج الأشخاص ذوي الإعاقة في سيناريوهات مخاطر الكوارث"}]
[]
[null,{"$f":"C123","v":"س ٢.١"},{"$f":"E123","v":"تصميم تحليلات المخاطر الشاملة للإعاقة وسيناريوهات المخاطر"},null,null,null,{"$f":"F123","v":0}]
[null,{"$f":"C124","v":"س ٢.٢"},{"$f":"E124","v":"التأثيرات المتتالية"},null,null,null,{"$f":"F124","v":0}]
[]
[]
[]
[]
[null,"الأساسية ٣",null,{"$f":"D111","v":"تعزيز القدرة المالية من أجل القدرة على الصمود - معرفة أساليب جذب استثمارات جديدة إلى المدينة من أجل الحد من مخاطر الكوارث"}]
[]
[null,null,null,null,null,null,{"$f":"F125","v":0}]
[]
[]
[]
[]
[null,"   الأساسية ٤",null,{"$f":"D112","v":"تطبيق تصاميم وتنمية حضرية قادرة على الصمود  - استخدام الأراضي تقسيم المناطق"}]
[]
[null,{"$f":"C126","v":"س ٤.١"},{"$f":"E126","v":"التصميم الحضري المرن الشامل"},null,null,null,{"$f":"F126","v":0}]
[null,{"$f":"C127","v":"س ٤.٢"},{"$f":"E127","v":"قوانين ومعايير البناء"},null,null,null,{"$f":"F127","v":0}]
[null,{"$f":"C128","v":"  س ٤.٣ "},{"$f":"E128","v":"قوانين ومعايير البناء"},null,null,null,{"$f":"F128","v":0}]
[null,{"$f":"C129","v":" س ٤.٤ "},{"$f":"E129","v":"إزالة المعوقات البيئية"},null,null,null,{"$f":"F129","v":0}]
[]
[]
[null,"الأساسية ٥",null,{"$f":"D113","v":" حماية الحواجز الطبيعية لتعزيز المهام الوقائية للنظم البيئية الطبيعية  - إدارة خدمات النظام البيئي مع مراعاة الأشخاص ذوي الإعاقة"}]
[]
[null,{"$f":"C130","v":"س ٦.١"},"لا يوجد مؤشر"]
[]
[]
[null,"الأساسية ٦",null,{"$f":"D114","v":" تعزيز القدرة المؤسسية من أجل القدرة على الصمود  - الأساسية ٦: تعزيز القدرة المؤسسية من أجل القدرة على الصمود"}]
[]
[null,{"$f":"C130","v":"س ٦.١"},{"$f":"E130","v":"بناء القدرات والإدماج من أجل الصمود"},null,null,null,{"$f":"F130","v":0}]
[null,{"$f":"C131","v":"س ٦.٢"},{"$f":"E131","v":"اللغة التي يمكن الوصول إليها"},null,null,null,{"$f":"F131","v":0}]
[]
[]
[null,"الأساسية ٧",null,{"$f":"D115","v":" تعزيز القدرة المؤسسية من أجل القدرة على الصمود  - المجتمع أو المنظمات الشعبية المتجذرة"}]
[]
[null,{"$f":"C132","v":"س ٧.١"},{"$f":"E132","v":"المشاركة الفعالة لمنظمات الأشخاص ذوي الإعاقة"},null,null,null,{"$f":"F132","v":0}]
[null,{"$f":"C133","v":"س ٧.٢"},{"$f":"E133","v":"بناء القدرات من قبل منظمات الأشخاص ذوي الإعاقة ومن أجلها"},null,null,null,{"$f":"F133","v":0}]
[]
[]
[]
[]
[null,"لأساسية ٨",null,{"$f":"D116","v":"  فهم وتعزيز القدرة المجتمعية على الصمود - البنية التحتية الوقائية"}]
[]
[null,{"$f":"C134","v":"س ٨.١"},{"$f":"E134","v":"لحماية من العنف"},null,null,null,{"$f":"F134","v":0}]
[]
[]
[null,"الأساسية ٩",null,{"$f":"D117","v":" زيادة قدرة البنية التحتية على الصمود - إدماج الأشخاص ذوي الإعاقة في الاستجابة للكوارث"}]
[]
[null,{"$f":"C135","v":"س ٩.١"},{"$f":"E135","v":"الكشف الشامل والمراقبة والإنذارات المبكرة"},null,null,null,{"$f":"F135","v":0}]
[null,{"$f":"C136","v":"س ٩.٢"},{"$f":"E136","v":"التدريبات"},null,null,null,{"$f":"F136","v":0}]
[null,{"$f":"C137","v":"س ٩.٣"},{"$f":"E137","v":"حملات التوعية والتدريبات متعددة السيناريوهات"},null,null,null,{"$f":"F137","v":0}]
[]
[]
[null,"لأساسية ١٠",null,{"$f":"D118","v":" ضمان الاستجابة الفعالة للكوارث - تخطيط للمعافاة لبعد الحدث وقبل الحدث"}]
[]
[null,{"$f":"C138","v":"س ١٠.١"},{"$f":"E138","v":"إعادة الإعمار والتأهيل الشامل"},null,null,null,{"$f":"F138","v":0}]
[null,{"$f":"C139","v":"س ١٠.٢"},{"$f":"E139","v":"مجموعة الدروس المستفادة"},null,null,null,{"$f":"F139","v":0}]
[]
[]
[]
[]
[]
[null,{"$f":"TODAY()","v":"2023-08-08"},null,null,null,null,null,{"$f":"Info!$B$4","v":"اسم المدينة "},"",null,{"$f":"Info!$B$6","v":"البلد "},""]
[]
[]
[]
[]
[null,null,"Label","Name",null,"Essential","TotalScore","MaxScore","Label"]
[null,null,"E1",{"$f":"\"الإعداد من أجل القدرة على الصمود - \"&'E01'!I3","v":"الإعداد من أجل القدرة على الصمود - إدماج الأشخاص ذوي الإعاقة في إدارة مخاطر الكوارث"},null,"E1",{"$f":"SUMIFS($F$121:$F$778,$B$121:$B$778,F109)","v":0},{"$f":"COUNTIFS($B$121:$B$778,F109)*3","v":6},1,null,{"$f":"SUM(G109:G118)","v":0},{"$f":"K109/K110","v":0},{"$f":"CONCATENATE(\"النتيجة الإجمالية لهذا التقييم هو\",SUM(G109:G118),\" / \",SUM(H109:H118))","v":"النتيجة الإجمالية لهذا التقييم هو0 / 57"}]
[null,null,"E2",{"$f":"\"تعريف وفهم واستخدام سيناريوهات المخاطر الحالية والمستقبلية - \"&'E02'!I3","v":"تعريف وفهم واستخدام سيناريوهات المخاطر الحالية والمستقبلية - إدماج الأشخاص ذوي الإعاقة في سيناريوهات مخاطر الكوارث"},null,"E2",0,6,2,null,{"$f":"SUM(H109:H118)","v":57},{"$f":"1-L109","v":1}]
[null,null,"E3",{"$f":"\"تعزيز القدرة المالية من أجل القدرة على الصمود - \"&'E03'!I3","v":"تعزيز القدرة المالية من أجل القدرة على الصمود - معرفة أساليب جذب استثمارات جديدة إلى المدينة من أجل الحد من مخاطر الكوارث"},null,"E3",0,3,3]
[null,null,"E4",{"$f":"\"تطبيق تصاميم وتنمية حضرية قادرة على الصمود  - \"&'E04'!I3","v":"تطبيق تصاميم وتنمية حضرية قادرة على الصمود  - استخدام الأراضي تقسيم المناطق"},null,"E4",0,12,4]
[null,null,"E5",{"$f":"\" حماية الحواجز الطبيعية لتعزيز المهام الوقائية للنظم البيئية الطبيعية  - \"&'E05'!I3","v":" حماية الحواجز الطبيعية لتعزيز المهام الوقائية للنظم البيئية الطبيعية  - إدارة خدمات النظام البيئي مع مراعاة الأشخاص ذوي الإعاقة"},null,"E5",0,0,5]
[null,null,"E6",{"$f":"\" تعزيز القدرة المؤسسية من أجل القدرة على الصمود  - \"&'E06'!I3","v":" تعزيز القدرة المؤسسية من أجل القدرة على الصمود  - الأساسية ٦: تعزيز القدرة المؤسسية من أجل القدرة على الصمود"},null,"E6",0,6,6]
[null,null,"E7",{"$f":"\" تعزيز القدرة المؤسسية من أجل القدرة على الصمود  - \"&'E07'!I3","v":" تعزيز القدرة المؤسسية من أجل القدرة على الصمود  - المجتمع أو المنظمات الشعبية المتجذرة"},null,"E7",0,6,7]
[null,null,"E8",{"$f":"\"  فهم وتعزيز القدرة المجتمعية على الصمود - \"&'E08'!I3","v":"  فهم وتعزيز القدرة المجتمعية على الصمود - البنية التحتية الوقائية"},null,"E8",0,3,8]
[null,null,"E9",{"$f":"\" زيادة قدرة البنية التحتية على الصمود - \"&'E09'!I3","v":" زيادة قدرة البنية التحتية على الصمود - إدماج الأشخاص ذوي الإعاقة في الاستجابة للكوارث"},null,"E9",0,9,9]
[null,null,"E10",{"$f":"\" ضمان الاستجابة الفعالة للكوارث - \"&'E10'!I3","v":" ضمان الاستجابة الفعالة للكوارث - تخطيط للمعافاة لبعد الحدث وقبل الحدث"},null,"E10",0,6,10]
[]
[null,"Section","Ref",null,"Question","SelectedScore","ThisScore"]
[null,"E1",{"$f":"'E01'!G$5","v":"س ١.١"},null,{"$f":"'E01'!I$5","v":"عدم ترك أحد خلف الركب"},{"$f":"IF(G121=\"\",0,IF(G121=0,0,4-G121))","v":0},{"$f":"OFFSET('E01'!$E$1,MATCH(C121,'E01'!G:G,0)+3,0)","v":0},null,null,null,null,null,null,null,null,null,null,"Remarks: "]
[null,"E1",{"$f":"'E01'!G$16","v":"س ١.٢"},null,{"$f":"'E01'!I$16","v":"التنظيم والتنسيق والمشاركة"},{"$f":"IF(G122=\"\",0,IF(G122=0,0,4-G122))","v":0},{"$f":"OFFSET('E01'!$E$1,MATCH(C122,'E01'!G:G,0)+3,0)","v":0},null,null,null,null,null,null,null,null,null,null,"- On this page, firstly fix from Row 126 downward to reflect all questions in this Scorecard"]
[null,"E2",{"$f":"'E02'!G$5","v":"س ٢.١"},null,{"$f":"'E02'!I$5","v":"تصميم تحليلات المخاطر الشاملة للإعاقة وسيناريوهات المخاطر"},0,{"$f":"OFFSET('E02'!$E$1,MATCH(C123,'E02'!G:G,0)+3,0)","v":0},null,null,null,null,null,null,null,null,null,null,"- Column G from G127 downward, must double check the formula.  (Formula = offset(reference, rows, cols, [height],[width])"]
[null,"E2",{"$f":"'E02'!G$16","v":"س ٢.٢"},null,{"$f":"'E02'!I$16","v":"التأثيرات المتتالية"},0,{"$f":"OFFSET('E02'!$E$1,MATCH(C124,'E02'!G:G,0)+3,0)","v":0},null,null,null,null,null,null,null,null,null,null,"- Column F from F127 downward, must adjust the formula. If the scoring bar is between 0-3, use \"4\"; if the scoring is between 0-5, use \"6\""]
[null,"E3",{"$f":"'E03'!G$5","v":"س ٣.١"},null,{"$f":"'E03'!I$5","v":"الآليات المالية الشاملة"},0,{"$f":"OFFSET('E03'!$E$1,MATCH(C125,'E03'!G:G,0)+3,0)","v":0},null,null,null,null,null,null,null,null,null,null,"E.G., =IF(G127=\"\",0,IF(G127=0,0,4-G127)) is for 0-3 scoring bar"]
[null,"E4",{"$f":"'E04'!G$5","v":"س ٤.١"},null,{"$f":"'E04'!I$5","v":"التصميم الحضري المرن الشامل"},0,{"$f":"OFFSET('E04'!$E$1,MATCH(C126,'E04'!G:G,0)+3,0)","v":0},null,null,null,null,null,null,null,null,null,null,"E.G., =IF(G127=\"\",0,IF(G127=0,0,6-G127)) is for 0-5 scoring bar"]
[null,"E4",{"$f":"'E04'!G$16","v":"س ٤.٢"},null,{"$f":"'E04'!I$16","v":"قوانين ومعايير البناء"},0,{"$f":"OFFSET('E04'!$E$1,MATCH(C127,'E04'!G:G,0)+3,0)","v":0}]
[null,"E4",{"$f":"'E04'!G$27","v":"  س ٤.٣ "},null,{"$f":"'E04'!I$27","v":"قوانين ومعايير البناء"},0,{"$f":"OFFSET('E04'!$E$1,MATCH(C128,'E04'!G:G,0)+3,0)","v":0},null,null,null,null,null,null,null,null,null,null,"-Then, work on Row 114 - 123"]
[null,"E4",{"$f":"'E04'!G$38","v":" س ٤.٤ "},null,{"$f":"'E04'!I$38","v":"إزالة المعوقات البيئية"},0,{"$f":"OFFSET('E04'!$E$1,MATCH(C129,'E04'!G:G,0)+3,0)","v":0},null,null,null,null,null,null,null,null,null,null,"- Check Column D (D114:D123) for the Essential titles"]
[null,"E6",{"$f":"'E06'!G$5","v":"س ٦.١"},null,{"$f":"'E06'!I$5","v":"بناء القدرات والإدماج من أجل الصمود"},0,{"$f":"OFFSET('E06'!$E$1,MATCH(C130,'E06'!G:G,0)+3,0)","v":0},null,null,null,null,null,null,null,null,null,null,"- Check Column G (G114:G123).  The formular should not need fixing. (=SUMIFS($F$126:$F$1002,$B$126:$B$1002,F114)"]
[null,"E6",{"$f":"'E06'!G$16","v":"س ٦.٢"},null,{"$f":"'E06'!I$16","v":"اللغة التي يمكن الوصول إليها"},0,{"$f":"OFFSET('E06'!$E$1,MATCH(C131,'E06'!G:G,0)+3,0)","v":0},null,null,null,null,null,null,null,null,null,null,"- Check Column H (H114:H123) Maximum Score"]
[null,"E7",{"$f":"'E07'!G$5","v":"س ٧.١"},null,{"$f":"'E07'!I$5","v":"المشاركة الفعالة لمنظمات الأشخاص ذوي الإعاقة"},0,{"$f":"OFFSET('E07'!$E$1,MATCH(C132,'E07'!G:G,0)+3,0)","v":0},null,null,null,null,null,null,null,null,null,null,"- Use formular =COUNTIFS($B$126:$B$1002,F114)*3, if scoring bar is 0-3"]
[null,"E7",{"$f":"'E07'!G$16","v":"س ٧.٢"},null,{"$f":"'E07'!I$16","v":"بناء القدرات من قبل منظمات الأشخاص ذوي الإعاقة ومن أجلها"},0,{"$f":"OFFSET('E07'!$E$1,MATCH(C133,'E07'!G:G,0)+3,0)","v":0},null,null,null,null,null,null,null,null,null,null,"- Use formular =COUNTIFS($B$126:$B$1002,F114)*5, if scoring bar is 0-5"]
[null,"E8",{"$f":"'E08'!G$5","v":"س ٨.١"},null,{"$f":"'E08'!I$5","v":"لحماية من العنف"},0,{"$f":"OFFSET('E08'!$E$1,MATCH(C134,'E08'!G:G,0)+3,0)","v":0}]
[null,"E9",{"$f":"'E09'!G$5","v":"س ٩.١"},null,{"$f":"'E09'!I$5","v":"الكشف الشامل والمراقبة والإنذارات المبكرة"},0,{"$f":"OFFSET('E09'!$E$1,MATCH(C135,'E09'!G:G,0)+3,0)","v":0},null,null,null,null,null,null,null,null,null,null,"- Then adjust the result display area above"]
[null,"E9",{"$f":"'E09'!G$16","v":"س ٩.٢"},null,{"$f":"'E09'!I$16","v":"التدريبات"},0,{"$f":"OFFSET('E09'!$E$1,MATCH(C136,'E09'!G:G,0)+3,0)","v":0},null,null,null,null,null,null,null,null,null,null,"- Fix the list of indicators"]
[null,"E9",{"$f":"'E09'!G$27","v":"س ٩.٣"},null,{"$f":"'E09'!I$27","v":"حملات التوعية والتدريبات متعددة السيناريوهات"},0,{"$f":"OFFSET('E09'!$E$1,MATCH(C137,'E09'!G:G,0)+3,0)","v":0},null,null,null,null,null,null,null,null,null,null,"- Apply appropriate chart types"]
[null,"E10",{"$f":"'E10'!G$5","v":"س ١٠.١"},null,{"$f":"'E10'!I$5","v":"إعادة الإعمار والتأهيل الشامل"},0,{"$f":"OFFSET('E10'!$E$1,MATCH(C138,'E10'!G:G,0)+3,0)","v":0},null,null,null,null,null,null,null,null,null,null,"- Change chart's axis value (3 maximum for 0-3 scoring bar, and 5 maximum for 0-5 scoring bar)"]
[null,"E10",{"$f":"'E10'!G$16","v":"س ١٠.٢"},null,{"$f":"'E10'!I$16","v":"مجموعة الدروس المستفادة"},0,{"$f":"OFFSET('E10'!$E$1,MATCH(C139,'E10'!G:G,0)+3,0)","v":0},null,null,null,null,null,null,null,null,null,null,"- Adjust the chart diaplay alignment across all essentials, etc."]
[null,null,null,null,null,null,null,null,null,null,null,null,null,null,null,null,null,"- View from 'Page Break Preview' and further adjust page layout to fit nicely in the print area"]

{"sheet":"E01","index":3,"n_rows":24,"n_cols":9,"rows_kept":24,"cut":false,"hidden":false,"merged":[[19,2,22,3],[18,2,18,3],[5,2,5,3],[6,2,6,3],[7,2,7,3],[16,2,16,3],[17,2,17,3],[8,2,11,3]]}
[]
[]
[null," E1 إدماج الأشخاص ذوي الإعاقة في إدارة مخاطر الكوارث",null,null,null,null,{"$f":"TRIM(LEFT(B3,3))","v":"E1"},null,{"$f":"TRIM(MID(B3,4,80))","v":"إدماج الأشخاص ذوي الإعاقة في إدارة مخاطر الكوارث"}]
[]
[null,"س ١.١ عدم ترك أحد خلف الركب",null,null,null,null,{"$f":"TRIM(LEFT(B5,6))","v":"س ١.١"},null,{"$f":"TRIM(MID(B5,6,120))","v":"عدم ترك أحد خلف الركب"}]
[null,"سؤال","تعليقات"]
[]
[null,"الإجابات","وسائل التحقق (الشرح والأدلة)"]
[null,null,null,null,null,{"$f":"IF(E9=1,TRUE,FALSE)","v":false}]
[null,null,null,null,null,{"$f":"IF(E9=2,TRUE,FALSE)","v":false}]
[null,null,null,null,null,{"$f":"IF(E9=3,TRUE,FALSE)","v":false}]
[null,null,null,null,null,{"$f":"IF(E9=4,TRUE,FALSE)","v":false}]
[null,"إجراءات لتعزيز إدماج الأشخاص ذوي الإعاقة","الكيان المسؤول","الوقت المخصص"]
[]
[]
[null,"س ١.٢ التنظيم والتنسيق والمشاركة",null,null,null,null,{"$f":"TRIM(LEFT(B16,6))","v":"س ١.٢"},null,{"$f":"TRIM(MID(B16,6,120))","v":"التنظيم والتنسيق والمشاركة"}]
[null,"سؤال","تعليقات"]
[]
[null,"الإجابات","وسائل التحقق (الشرح والأدلة)"]
[null,null,null,null,null,{"$f":"IF(E20=1,TRUE,FALSE)","v":false}]
[null,null,null,null,null,{"$f":"IF(E20=2,TRUE,FALSE)","v":false}]
[null,null,null,null,null,{"$f":"IF(E20=3,TRUE,FALSE)","v":false}]
[null,null,null,null,null,{"$f":"IF(E20=4,TRUE,FALSE)","v":false}]
[null,"إجراءات لتعزيز إدماج الأشخاص ذوي الإعاقة","الكيان المسؤول ","الوقت المخصص"]

{"sheet":"E02","index":4,"n_rows":24,"n_cols":9,"rows_kept":24,"cut":false,"hidden":false,"merged":[[18,2,18,3],[8,2,11,3],[19,2,22,3],[5,2,5,3],[6,2,6,3],[7,2,7,3],[16,2,16,3],[17,2,17,3]]}
[]
[]
[null," E2 إدماج الأشخاص ذوي الإعاقة في سيناريوهات مخاطر الكوارث",null,null,null,null,{"$f":"TRIM(LEFT(B3,3))","v":"E2"},null,{"$f":"TRIM(MID(B3,4,80))","v":"إدماج الأشخاص ذوي الإعاقة في سيناريوهات مخاطر الكوارث"}]
[]
[null,"س ٢.١ تصميم تحليلات المخاطر الشاملة للإعاقة وسيناريوهات المخاطر",null,null,null,null,{"$f":"TRIM(LEFT(B5,5))","v":"س ٢.١"},null,{"$f":"TRIM(MID(B5,6,120))","v":"تصميم تحليلات المخاطر الشاملة للإعاقة وسيناريوهات المخاطر"}]
[null,"سؤال","تعليقات"]
[]
[null,"الإجابات","وسائل التحقق (الشرح والأدلة)"]
[null,null,null,null,null,{"$f":"IF(E9=1,TRUE,FALSE)","v":false}]
[null,null,null,null,null,{"$f":"IF(E9=2,TRUE,FALSE)","v":false}]
[null,null,null,null,null,{"$f":"IF(E9=3,TRUE,FALSE)","v":false}]
[null,null,null,null,null,{"$f":"IF(E9=4,TRUE,FALSE)","v":false}]
[null,"إجراءات لتعزيز إدماج الأشخاص ذوي الإعاقة","الكيان المسؤول","الوقت المخصص"]
[]
[]
[null,"س ٢.٢ التأثيرات المتتالية",null,null,null,null,{"$f":"TRIM(LEFT(B16,6))","v":"س ٢.٢"},null,{"$f":"TRIM(MID(B16,6,120))","v":"التأثيرات المتتالية"}]
[null,"سؤال","تعليقات",null,null,null,null,null,{"$f":"TRIM(MID(B15,6,120))","v":""}]
[]
[null,"الإجابات","وسائل التحقق (الشرح والأدلة)"]
[null,null,null,null,null,{"$f":"IF(E20=1,TRUE,FALSE)","v":false}]
[null,null,null,null,null,{"$f":"IF(E20=2,TRUE,FALSE)","v":false}]
[null,null,null,null,null,{"$f":"IF(E20=3,TRUE,FALSE)","v":false}]
[null,null,null,null,null,{"$f":"IF(E20=4,TRUE,FALSE)","v":false}]
[null,"إجراءات لتعزيز إدماج الأشخاص ذوي الإعاقة","الكيان المسؤول ","الوقت المخصص"]

{"sheet":"E03","index":5,"n_rows":13,"n_cols":9,"rows_kept":13,"cut":false,"hidden":false,"merged":[[8,2,11,3],[4,1,4,3],[5,2,5,3],[6,2,6,3],[7,2,7,3]]}
[]
[]
[null," E3  معرفة أساليب جذب استثمارات جديدة إلى المدينة من أجل الحد من مخاطر الكوارث",null,null,null,null,{"$f":"TRIM(LEFT(B3,3))","v":"E3"},null,{"$f":"TRIM(MID(B3,4,80))","v":"معرفة أساليب جذب استثمارات جديدة إلى المدينة من أجل الحد من مخاطر الكوارث"}]
[]
[null,"س ٣.١ الآليات المالية الشاملة ",null,null,null,null,{"$f":"TRIM(LEFT(B5,6))","v":"س ٣.١"},null,{"$f":"TRIM(MID(B5,6,120))","v":"الآليات المالية الشاملة"}]
[null,"سؤال","تعليقات"]
[]
[null,"الإجابات","وسائل التحقق (الشرح والأدلة)"]
[null,null,null,null,null,{"$f":"IF(E9=1,TRUE,FALSE)","v":false}]
[null,null,null,null,null,{"$f":"IF(E9=2,TRUE,FALSE)","v":false}]
[null,null,null,null,null,{"$f":"IF(E9=3,TRUE,FALSE)","v":false}]
[null,null,null,null,null,{"$f":"IF(E9=4,TRUE,FALSE)","v":false}]
[null,"إجراءات لتعزيز إدماج الأشخاص ذوي الإعاقة","الكيان المسؤول","الوقت المخصص"]

{"sheet":"E04","index":6,"n_rows":46,"n_cols":9,"rows_kept":46,"cut":false,"hidden":false,"merged":[[27,2,27,3],[28,2,28,3],[41,2,44,3],[30,2,33,3],[19,2,22,3],[29,2,29,3],[37,1,37,3],[38,2,38,3],[39,2,39,3],[40,2,40,3],[16,2,16,3],[4,1,4,3],[17,2,17,3],[18,2,18,3],[26,1,26,3],[5,2,5,3],[6,2,6,3],[7,2,7,3],[15,1,15,3],[8,2,11,3]]}
[]
[]
[null,"E4  استخدام الأراضي تقسيم المناطق",null,null,null,null,{"$f":"TRIM(LEFT(B3,3))","v":"E4"},null,{"$f":"TRIM(MID(B3,4,80))","v":"استخدام الأراضي تقسيم المناطق"}]
[]
[null,"س ٤.١ التصميم الحضري المرن الشامل",null,null,null,null,{"$f":"TRIM(LEFT(B5,6))","v":"س ٤.١"},null,{"$f":"TRIM(MID(B5,6,120))","v":"التصميم الحضري المرن الشامل"}]
[null,"سؤال","تعليقات"]
[]
[null,"الإجابات","وسائل التحقق (الشرح والأدلة)"]
[null,null,null,null,null,{"$f":"IF(E9=1,TRUE,FALSE)","v":false}]
[null,null,null,null,null,{"$f":"IF(E9=2,TRUE,FALSE)","v":false}]
[null,null,null,null,null,{"$f":"IF(E9=3,TRUE,FALSE)","v":false}]
[null,null,null,null,null,{"$f":"IF(E9=4,TRUE,FALSE)","v":false}]
[null,"إجراءات لتعزيز إدماج الأشخاص ذوي الإعاقة","الكيان المسؤول ","الوقت المخصص"]
[]
[]
[null,"س ٤.٢ قوانين ومعايير البناء",null,null,null,null,{"$f":"TRIM(LEFT(B16,6))","v":"س ٤.٢"},null,{"$f":"TRIM(MID(B16,6,120))","v":"قوانين ومعايير البناء"}]
[null,"سؤال","تعليقات"]
[]
[null,"الإجابات","وسائل التحقق (الشرح والأدلة)"]
[null,null,null,null,null,{"$f":"IF(E20=1,TRUE,FALSE)","v":false}]
[null,null,null,null,null,{"$f":"IF(E20=2,TRUE,FALSE)","v":false}]
[null,null,null,null,null,{"$f":"IF(E20=3,TRUE,FALSE)","v":false}]
[null,null,null,null,null,{"$f":"IF(E20=4,TRUE,FALSE)","v":false}]
[null,"إجراءات لتعزيز إدماج الأشخاص ذوي الإعاقة","الكيان المسؤول","الوقت المخصص"]
[]
[]
[null,"  س ٤.٣ قوانين ومعايير البناء",null,null,null,null,{"$f":"LEFT(B27,8)","v":"  س ٤.٣ "},null,{"$f":"TRIM(MID(B27,8,120))","v":"قوانين ومعايير البناء"}]
[null,"سؤال","تعليقات"]
[]
[null,"الإجابات","وسائل التحقق (الشرح والأدلة)"]
[null,null,null,null,null,{"$f":"IF(E31=1,TRUE,FALSE)","v":false}]
[null,null,null,null,null,{"$f":"IF(E31=2,TRUE,FALSE)","v":false}]
[null,null,null,null,null,{"$f":"IF(E31=3,TRUE,FALSE)","v":false}]
[null,null,null,null,null,{"$f":"IF(E31=4,TRUE,FALSE)","v":false}]
[null,"إجراءات لتعزيز إدماج الأشخاص ذوي الإعاقة","الكيان المسؤول","الوقت المخصص"]
[]
[]
[null," س ٤.٤ إزالة المعوقات البيئية",null,null,null,null,{"$f":"LEFT(B38,7)","v":" س ٤.٤ "},null,{"$f":"TRIM(MID(B38,7,120))","v":"إزالة المعوقات البيئية"}]
[null,"سؤال","تعليقات"]
[]
[null,"الإجابات","وسائل التحقق (الشرح والأدلة)"]
[null,null,null,null,null,{"$f":"IF(E42=1,TRUE,FALSE)","v":false}]
[null,null,null,null,null,{"$f":"IF(E42=2,TRUE,FALSE)","v":false}]
[null,null,null,null,null,{"$f":"IF(E42=3,TRUE,FALSE)","v":false}]
[null,null,null,null,null,{"$f":"IF(E42=4,TRUE,FALSE)","v":false}]
[null,"إجراءات لتعزيز إدماج الأشخاص ذوي الإعاقة","الكيان المسؤول","الوقت المخصص"]

{"sheet":"E05","index":7,"n_rows":5,"n_cols":9,"rows_kept":5,"cut":false,"hidden":false,"merged":[]}
[]
[]
[null,"E5  إدارة خدمات النظام البيئي مع مراعاة الأشخاص ذوي الإعاقة",null,null,null,null,{"$f":"TRIM(LEFT(B3,3))","v":"E5"},null,{"$f":"TRIM(MID(B3,4,80))","v":"إدارة خدمات النظام البيئي مع مراعاة الأشخاص ذوي الإعاقة"}]
[]
[null,"لا يتضمن هذا الإصدار من الملحق الخاص بإدماج الأشخاص ذوي الإعاقة أسئلة محددة للأساسية ٥، ولكنه يشجع الحكومات المحلية والأطراف المهتمة على البحث عن حلول قائمة على الطبيعة وفقًا للسياق المحلي لأنها ليست أكثر فعالية من حيث التكلفة فقط، ولكن يمكن أن تعزز الرفاه العام للجميع مع تقليل الآثار السلبية لمخاطر المناخ. يجب أن يؤخذ في الاعتبار الأشخاص ذوي الإعاقة في تصميم وتنفيذ وتقييم الحلول القائمة على الطبيعة للحد من مخاطر الكوارث والمناخ. "]

{"sheet":"E06","index":8,"n_rows":24,"n_cols":9,"rows_kept":24,"cut":false,"hidden":false,"merged":[[16,2,16,3],[19,2,22,3],[17,2,17,3],[18,2,18,3],[4,1,4,3],[5,2,5,3],[6,2,6,3],[7,2,7,3],[15,1,15,3],[8,2,11,3]]}
[]
[]
[null," E6 الأساسية ٦: تعزيز القدرة المؤسسية من أجل القدرة على الصمود",null,null,null,null,{"$f":"TRIM(LEFT(B3,3))","v":"E6"},null,{"$f":"TRIM(MID(B3,4,80))","v":"الأساسية ٦: تعزيز القدرة المؤسسية من أجل القدرة على الصمود"}]
[]
[null,"س ٦.١ بناء القدرات والإدماج من أجل الصمود",null,null,null,null,{"$f":"TRIM(LEFT(B5,6))","v":"س ٦.١"},null,{"$f":"TRIM(MID(B5,6,120))","v":"بناء القدرات والإدماج من أجل الصمود"}]
[null,"سؤال","تعليقات"]
[]
[null,"الإجابات","وسائل التحقق (الشرح والأدلة)"]
[null,null,null,null,null,{"$f":"IF(E9=1,TRUE,FALSE)","v":false}]
[null,null,null,null,null,{"$f":"IF(E9=2,TRUE,FALSE)","v":false}]
[null,null,null,null,null,{"$f":"IF(E9=3,TRUE,FALSE)","v":false}]
[null,null,null,null,null,{"$f":"IF(E9=4,TRUE,FALSE)","v":false}]
[null,"إجراءات لتعزيز إدماج الأشخاص ذوي الإعاقة","الكيان المسؤول","الوقت المخصص"]
[]
[]
[null,"س ٦.٢ اللغة التي يمكن الوصول إليها",null,null,null,null,{"$f":"TRIM(LEFT(B16,6))","v":"س ٦.٢"},null,{"$f":"TRIM(MID(B16,6,120))","v":"اللغة التي يمكن الوصول إليها"}]
[null,"سؤال","تعليقات"]
[]
[null,"الإجابات","وسائل التحقق (الشرح والأدلة)"]
[null,null,null,null,null,{"$f":"IF(E20=1,TRUE,FALSE)","v":false}]
[null,null,null,null,null,{"$f":"IF(E20=2,TRUE,FALSE)","v":false}]
[null,null,null,null,null,{"$f":"IF(E20=3,TRUE,FALSE)","v":false}]
[null,null,null,null,null,{"$f":"IF(E20=4,TRUE,FALSE)","v":false}]
[null,"إجراءات لتعزيز إدماج الأشخاص ذوي الإعاقة","الكيان المسؤول","الوقت المخصص"]

{"sheet":"E07","index":9,"n_rows":26,"n_cols":9,"rows_kept":26,"cut":false,"hidden":false,"merged":[[16,2,16,3],[8,2,11,3],[19,2,22,3],[17,2,17,3],[18,2,18,3],[4,1,4,3],[5,2,5,3],[6,2,6,3],[7,2,7,3],[15,1,15,3]]}
[]
[]
[null,"E7 المجتمع أو المنظمات الشعبية المتجذرة",null,null,null,null,{"$f":"TRIM(LEFT(B3,3))","v":"E7"},null,{"$f":"TRIM(MID(B3,4,80))","v":"المجتمع أو المنظمات الشعبية المتجذرة"}]
[null,null,null,null,null,null,""]
[null,"س ٧.١ المشاركة الفعالة لمنظمات الأشخاص ذوي الإعاقة",null,null,null,null,{"$f":"TRIM(LEFT(B5,6))","v":"س ٧.١"},null,{"$f":"TRIM(MID(B5,6,120))","v":"المشاركة الفعالة لمنظمات الأشخاص ذوي الإعاقة"}]
[null,"سؤال","تعليقات",null,null,null,""]
[null,null,null,null,null,null,""]
[null,"الإجابات"," وسائل التحقق (الشرح والأدلة)",null,null,null,""]
[null,null,null,null,null,{"$f":"IF(E9=1,TRUE,FALSE)","v":false},""]
[null,null,null,null,null,{"$f":"IF(E9=2,TRUE,FALSE)","v":false},""]
[null,null,null,null,null,{"$f":"IF(E9=3,TRUE,FALSE)","v":false},""]
[null,null,null,null,null,{"$f":"IF(E9=4,TRUE,FALSE)","v":false},""]
[null,"إجراءات لتعزيز إدماج الأشخاص ذوي الإعاقة","الكيان المسؤول","الوقت المخصص",null,null,""]
[null,null,null,null,null,null,""]
[null,null,null,null,null,null,""]
[null,"  س ٧.٢ بناء القدرات من قبل منظمات الأشخاص ذوي الإعاقة ومن أجلها",null,null,null,null,{"$f":"TRIM(LEFT(B16,8))","v":"س ٧.٢"},null,{"$f":"TRIM(MID(B16,8,120))","v":"بناء القدرات من قبل منظمات الأشخاص ذوي الإعاقة ومن أجلها"}]
[null,"سؤال","تعليقات",null,null,null,""]
[null,null,null,null,null,null,""]
[null,"الإجابات"," وسائل التحقق (الشرح والأدلة)",null,null,null,""]
[null,null,null,null,null,{"$f":"IF(E20=1,TRUE,FALSE)","v":false},""]
[null,null,null,null,null,{"$f":"IF(E20=2,TRUE,FALSE)","v":false},""]
[null,null,null,null,null,{"$f":"IF(E20=3,TRUE,FALSE)","v":false},""]
[null,null,null,null,null,{"$f":"IF(E20=4,TRUE,FALSE)","v":false},""]
[null,"إجراءات لتعزيز إدماج الأشخاص ذوي الإعاقة","الكيان المسؤول","الوقت المخصص",null,null,""]
[null,null,null,null,null,null,""]
[null,null,null,null,null,null,""]

{"sheet":"E08","index":10,"n_rows":17,"n_cols":9,"rows_kept":17,"cut":false,"hidden":false,"merged":[[8,2,11,3],[4,1,4,3],[5,2,5,3],[6,2,6,3],[7,2,7,3]]}
[]
[]
[null,"E8  البنية التحتية الوقائية",null,null,null,null,{"$f":"TRIM(LEFT(B3,3))","v":"E8"},null,{"$f":"TRIM(MID(B3,4,80))","v":"البنية التحتية الوقائية"}]
[null,null,null,null,null,null,""]
[null,"س ٨.١ الحماية من العنف",null,null,null,null,{"$f":"TRIM(LEFT(B5,6))","v":"س ٨.١"},null,{"$f":"TRIM(MID(B5,8,120))","v":"لحماية من العنف"}]
[null,"السؤال/ مجال التقييم","تعليقات",null,null,null,""]
[null,null,null,null,null,null,""]
[null,"نطاق القياس الإرشادي","وسائل التحقق (الشرح والأدلة)",null,null,null,""]
[null,null,null,null,null,{"$f":"IF(E9=1,TRUE,FALSE)","v":false},""]
[null,null,null,null,null,{"$f":"IF(E9=2,TRUE,FALSE)","v":false},""]
[null,null,null,null,null,{"$f":"IF(E9=3,TRUE,FALSE)","v":false},""]
[null,null,null,null,null,{"$f":"IF(E9=4,TRUE,FALSE)","v":false},""]
[null,"إجراءات لتحقيق الحد الأقصى من القدرة على الصمود","الجهة المسئولة ","الجدول الزمني",null,null,""]
[null,null,null,null,null,null,""]
[null,null,null,null,null,null,""]
[]
[null,"           "]

{"sheet":"E09","index":11,"n_rows":37,"n_cols":9,"rows_kept":37,"cut":false,"hidden":false,"merged":[[30,2,33,3],[17,2,17,3],[18,2,18,3],[4,1,4,3],[5,2,5,3],[6,2,6,3],[7,2,7,3],[15,1,15,3],[16,2,16,3],[19,2,22,3],[26,1,26,3],[27,2,27,3],[28,2,28,3],[29,2,29,3]]}
[]
[]
[null,"E9 إدماج الأشخاص ذوي الإعاقة في الاستجابة للكوارث ",null,null,null,null,{"$f":"TRIM(LEFT(B3,3))","v":"E9"},null,{"$f":"TRIM(MID(B3,4,80))","v":"إدماج الأشخاص ذوي الإعاقة في الاستجابة للكوارث"}]
[null,null,null,null,null,null,""]
[null,"س ٩.١ الكشف الشامل والمراقبة والإنذارات المبكرة",null,null,null,null,{"$f":"TRIM(LEFT(B5,6))","v":"س ٩.١"},null,{"$f":"TRIM(MID(B5,6,120))","v":"الكشف الشامل والمراقبة والإنذارات المبكرة"}]
[null,"سؤال","تعليقات",null,null,null,""]
[null,null,null,null,null,null,""]
[null,"الإجابات","وسائل التحقق (الشرح والأدلة)",null,null,null,""]
[null,null,null,null,null,{"$f":"IF(E9=1,TRUE,FALSE)","v":false},""]
[null,null,null,null,null,{"$f":"IF(E9=2,TRUE,FALSE)","v":false},""]
[null,null,null,null,null,{"$f":"IF(E9=3,TRUE,FALSE)","v":false},""]
[null,null,null,null,null,{"$f":"IF(E9=4,TRUE,FALSE)","v":false},""]
[null,"إجراءات لتعزيز إدماج الأشخاص ذوي الإعاقة","الكيان المسؤول","الوقت المخصص",null,null,""]
[null,null,null,null,null,null,""]
[null,null,null,null,null,null,""]
[null,"  س ٩.٢ التدريبات",null,null,null,null,{"$f":"TRIM(LEFT(B16,7))","v":"س ٩.٢"},null,{"$f":"TRIM(MID(B16,8,120))","v":"التدريبات"}]
[null,"سؤال","تعليقات",null,null,null,""]
[null,null,null,null,null,null,""]
[null,"الإجابات","وسائل التحقق (الشرح والأدلة)",null,null,null,""]
[null,null,null,null,null,{"$f":"IF(E20=1,TRUE,FALSE)","v":false},""]
[null,null,null,null,null,{"$f":"IF(E20=2,TRUE,FALSE)","v":false},""]
[null,null,null,null,null,{"$f":"IF(E20=3,TRUE,FALSE)","v":false},""]
[null,null,null,null,null,{"$f":"IF(E20=4,TRUE,FALSE)","v":false},""]
[null,"إجراءات لتعزيز إدماج الأشخاص ذوي الإعاقة","الكيان المسؤول","الوقت المخصص",null,null,""]
[null,null,null,null,null,null,""]
[null,null,null,null,null,null,""]
[null,"س ٩.٣ حملات التوعية والتدريبات متعددة السيناريوهات",null,null,null,null,{"$f":"LEFT(B27,5)","v":"س ٩.٣"},null,{"$f":"TRIM(MID(B27,6,120))","v":"حملات التوعية والتدريبات متعددة السيناريوهات"}]
[null,"السؤال/ مجال التقييم","تعليقات",null,null,null,""]
[null,null,null,null,null,null,""]
[null,"نطاق القياس الإرشادي","وسائل التحقق (الشرح والأدلة)",null,null,null,""]
[null,null,null,null,null,{"$f":"IF(E31=1,TRUE,FALSE)","v":false},""]
[null,null,null,null,null,{"$f":"IF(E31=2,TRUE,FALSE)","v":false},""]
[null,null,null,null,null,{"$f":"IF(E31=3,TRUE,FALSE)","v":false},""]
[null,null,null,null,null,{"$f":"IF(E31=4,TRUE,FALSE)","v":false},""]
[null,"إجراءات لتحقيق الحد الأقصى من القدرة على الصمود","الجهة المسئولة ","الجدول الزمني",null,null,""]
[null,null,null,null,null,null,""]
[null,null,null,null,null,null,""]

{"sheet":"E10","index":12,"n_rows":33,"n_cols":9,"rows_kept":33,"cut":false,"hidden":false,"merged":[[19,2,22,3],[17,2,17,3],[18,2,18,3],[16,2,16,3],[4,1,4,3],[5,2,5,3],[6,2,6,3],[7,2,7,3],[15,1,15,3]]}
[]
[]
[null,"E10- التخطيط للمعافاة لبعد الحدث وقبل الحدث",null,null,null,null,{"$f":"TRIM(LEFT(B3,3))","v":"E10"},null,{"$f":"TRIM(MID(B3,8,80))","v":"تخطيط للمعافاة لبعد الحدث وقبل الحدث"}]
[]
[null,"س ١٠.١ إعادة الإعمار والتأهيل الشامل",null,null,null,null,{"$f":"TRIM(LEFT(B5,6))","v":"س ١٠.١"},null,{"$f":"TRIM(MID(B5,8,120))","v":"إعادة الإعمار والتأهيل الشامل"}]
[null,"سؤال","تعليقات"]
[]
[null,"الإجابات","وسائل التحقق (الشرح والأدلة)"]
[null,null,null,null,null,{"$f":"IF(E9=1,TRUE,FALSE)","v":false}]
[null,null,null,null,null,{"$f":"IF(E9=2,TRUE,FALSE)","v":false}]
[null,null,null,null,null,{"$f":"IF(E9=3,TRUE,FALSE)","v":false}]
[null,null,null,null,null,{"$f":"IF(E9=4,TRUE,FALSE)","v":false}]
[null,"إجراءات لتعزيز إدماج الأشخاص ذوي الإعاقة","الكيان المسؤول","الوقت المخصص"]
[]
[]
[null,"س ١٠.٢ مجموعة الدروس المستفادة",null,null,null,null,{"$f":"TRIM(LEFT(B16,6))","v":"س ١٠.٢"},null,{"$f":"TRIM(MID(B16,8,120))","v":"مجموعة الدروس المستفادة"}]
[null,"سؤال","تعليقات"]
[]
[null,"الإجابات","وسائل التحقق (الشرح والأدلة)"]
[null,null,null,null,null,{"$f":"IF(E20=1,TRUE,FALSE)","v":false}]
[null,null,null,null,null,{"$f":"IF(E20=2,TRUE,FALSE)","v":false}]
[null,null,null,null,null,{"$f":"IF(E20=3,TRUE,FALSE)","v":false}]
[null,null,null,null,null,{"$f":"IF(E20=4,TRUE,FALSE)","v":false}]
[null,"إجراءات لتعزيز إدماج الأشخاص ذوي الإعاقة","الكيان المسؤول","الوقت المخصص"]
[]
[]
[]
[]
[]
[]
[]
[]
[null,"                                             "]

{"sheet":"About","index":13,"n_rows":0,"n_cols":0,"rows_kept":0,"cut":false,"hidden":false,"merged":[]}